[Event "Titled Tuesday Blitz October 25 Early 2022"]
[White "Bagwe Gaurang"]
[Black "Predke, Alexandr"]
[WhiteFideId "45039895"]
[BlackFideId "24107581"]
[WhiteElo "1931"]
[BlackElo "2614"]
[Result "0-1"]
[Round "01"]
[TimeControl "180+1"]
[Date "2022.10.25"]
[WhiteClock "0:00:03"]
[BlackClock "0:00:05"]

1. e4 {[%clk 0:02:58]}  c5 {[%clk 0:02:59]} 2. Nf3 {[%clk 0:02:57]}  e6 {[%clk 0:02:58]} 3. c3 {[%clk 0:02:56]}  d5 {[%clk 0:02:55]} 4. exd5 {[%clk 0:02:55]}  Qxd5 {[%clk 0:02:55]} 5. d4 {[%clk 0:02:55]}  Nf6 {[%clk 0:02:53]} 6. Be2 {[%clk 0:02:55]}  Nc6 {[%clk 0:02:50]} 7. O-O {[%clk 0:02:55]}  Be7 {[%clk 0:02:45]} 8. Be3 {[%clk 0:02:56]}  cxd4 {[%clk 0:02:43]} 9. cxd4 {[%clk 0:02:57]}  O-O {[%clk 0:02:40]} 10. Nc3 {[%clk 0:02:57]}  Qd8 {[%clk 0:02:35]} 11. Ne5 {[%clk 0:02:56]}  Bd7 {[%clk 0:02:34]} 12. f4 {[%clk 0:02:53]}  Rc8 {[%clk 0:02:29]} 13. Bf3 {[%clk 0:02:52]}  Qb6 {[%clk 0:01:44]} 14. Qd2 {[%clk 0:02:38]}  Rfd8 {[%clk 0:01:41]} 15. Rad1 {[%clk 0:02:21]}  Be8 {[%clk 0:01:38]} 16. Kh1 {[%clk 0:02:17]}  Nb4 {[%clk 0:01:25]} 17. g4 {[%clk 0:01:39]}  Nfd5 {[%clk 0:01:11]} 18. a3 {[%clk 0:00:52]}  Nxc3 {[%clk 0:01:05]} 19. bxc3 {[%clk 0:00:51]}  Nd5 {[%clk 0:01:06]} 20. c4 {[%clk 0:00:51]}  Nxe3 {[%clk 0:01:02]} 21. Qxe3 {[%clk 0:00:51]}  Qa6 {[%clk 0:00:54]} 22. c5 {[%clk 0:00:38]}  b6 {[%clk 0:00:50]} 23. c6 {[%clk 0:00:32]}  Qxa3 {[%clk 0:00:46]} 24. Qxa3 {[%clk 0:00:30]}  Bxa3 {[%clk 0:00:47]} 25. Ra1 {[%clk 0:00:29]}  Bd6 {[%clk 0:00:25]} 26. Rfc1 {[%clk 0:00:16]}  Bb8 {[%clk 0:00:20]} 27. f5 {[%clk 0:00:11]}  Rxd4 {[%clk 0:00:17]} 28. Nd7 {[%clk 0:00:09]}  Bxd7 {[%clk 0:00:08]} 29. cxd7 {[%clk 0:00:09]}  Rd8 {[%clk 0:00:09]} 30. Bc6 {[%clk 0:00:09]}  Kf8 {[%clk 0:00:06]} 31. fxe6 {[%clk 0:00:09]}  fxe6 {[%clk 0:00:07]} 32. Rf1+ {[%clk 0:00:07]}  Ke7 {[%clk 0:00:07]} 33. Rae1 {[%clk 0:00:08]}  Rd6 {[%clk 0:00:04]} 34. Ba4 {[%clk 0:00:05]}  a6 {[%clk 0:00:03]} 35. Re5 {[%clk 0:00:03]}  b5 {[%clk 0:00:02]} 36. Bc2 {[%clk 0:00:02]}  Rc6 {[%clk 0:00:02]} 37. Bxh7 {[%clk 0:00:02]}  Bxe5 {[%clk 0:00:02]} 38. Bg6 {[%clk 0:00:03]}  Bf6 {[%clk 0:00:02]} 39. g5 {[%clk 0:00:03]}  Bxg5 {[%clk 0:00:02]} 40. Rf7+ {[%clk 0:00:03]}  Kd6 {[%clk 0:00:03]} 41. Be4 {[%clk 0:00:03]}  Rc1+ {[%clk 0:00:03]} 42. Kg2 {[%clk 0:00:04]}  Bf6 {[%clk 0:00:03]} 43. h4 {[%clk 0:00:03]}  Rxd7 {[%clk 0:00:03]} 44. Rf8 {[%clk 0:00:03]}  Rd8 {[%clk 0:00:04]} 45. Rf7 {[%clk 0:00:03]}  Rc7 {[%clk 0:00:05]} 46. Rxc7 {[%clk 0:00:03]}  Kxc7 {[%clk 0:00:05]} 0-1


[Site "https://www.chess.com"]

[Event "Titled Tuesday Blitz October 25 Early 2022"]
[White "Caruana, Fabiano"]
[Black "Cadena M, Gustavo Adolfo"]
[WhiteFideId "2020009"]
[BlackFideId "4404815"]
[WhiteElo "2847"]
[BlackElo "2241"]
[Result "1-0"]
[Round "01"]
[TimeControl "180+1"]
[Date "2022.10.25"]
[WhiteClock "0:00:53"]
[BlackClock "0:00:01"]

1. d4 {[%clk 0:03:00]}  Nf6 {[%clk 0:02:59]} 2. Nc3 {[%clk 0:02:59]}  d5 {[%clk 0:02:58]} 3. Bf4 {[%clk 0:02:59]}  Bf5 {[%clk 0:02:57]} 4. e3 {[%clk 0:02:59]}  c6 {[%clk 0:02:57]} 5. Bd3 {[%clk 0:02:57]}  Bg6 {[%clk 0:02:57]} 6. Nf3 {[%clk 0:02:56]}  e6 {[%clk 0:02:56]} 7. Ne5 {[%clk 0:02:57]}  Nbd7 {[%clk 0:02:56]} 8. O-O {[%clk 0:02:57]}  Nxe5 {[%clk 0:02:55]} 9. dxe5 {[%clk 0:02:57]}  Nd7 {[%clk 0:02:55]} 10. Bg3 {[%clk 0:02:56]}  Qb6 {[%clk 0:02:52]} 11. Rb1 {[%clk 0:02:53]}  Nc5 {[%clk 0:02:45]} 12. b4 {[%clk 0:02:44]}  Nd7 {[%clk 0:02:41]} 13. Ne2 {[%clk 0:02:32]}  Be7 {[%clk 0:02:34]} 14. Nd4 {[%clk 0:02:26]}  Qc7 {[%clk 0:02:29]} 15. f4 {[%clk 0:02:25]}  Bxd3 {[%clk 0:02:25]} 16. cxd3 {[%clk 0:02:24]}  a5 {[%clk 0:02:25]} 17. b5 {[%clk 0:02:24]}  c5 {[%clk 0:02:19]} 18. b6 {[%clk 0:02:18]}  Nxb6 {[%clk 0:02:18]} 19. Nb5 {[%clk 0:02:18]}  Qc6 {[%clk 0:02:16]} 20. f5 {[%clk 0:02:18]}  exf5 {[%clk 0:02:04]} 21. e6 {[%clk 0:02:15]}  O-O {[%clk 0:02:01]} 22. Nc7 {[%clk 0:01:48]}  Rac8 {[%clk 0:01:57]} 23. Qb3 {[%clk 0:01:48]}  Rxc7 {[%clk 0:00:26]} 24. Bxc7 {[%clk 0:01:46]}  Qxc7 {[%clk 0:00:27]} 25. Qxb6 {[%clk 0:01:41]}  Qxb6 {[%clk 0:00:27]} 26. exf7+ {[%clk 0:01:34]}  Rxf7 {[%clk 0:00:25]} 27. Rxb6 {[%clk 0:01:35]}  c4 {[%clk 0:00:17]} 28. Rb5 {[%clk 0:01:29]}  c3 {[%clk 0:00:14]} 29. Rc1 {[%clk 0:01:27]}  Bg5 {[%clk 0:00:12]} 30. Rxc3 {[%clk 0:01:24]}  Bxe3+ {[%clk 0:00:11]} 31. Kf1 {[%clk 0:01:25]}  g6 {[%clk 0:00:09]} 32. Rxd5 {[%clk 0:01:23]}  f4 {[%clk 0:00:09]} 33. Ke2 {[%clk 0:01:20]}  Kg7 {[%clk 0:00:09]} 34. Kf3 {[%clk 0:01:18]}  Kh6 {[%clk 0:00:09]} 35. Rc4 {[%clk 0:01:14]}  Re7 {[%clk 0:00:09]} 36. h4 {[%clk 0:01:01]}  b6 {[%clk 0:00:09]} 37. a4 {[%clk 0:00:57]}  Re8 {[%clk 0:00:08]} 38. Rd7 {[%clk 0:00:55]}  Rh8 {[%clk 0:00:07]} 39. g4 {[%clk 0:00:54]}  Rf8 {[%clk 0:00:01]} 40. g5+ {[%clk 0:00:53]} 1-0


[Site "https://www.chess.com"]

[Event "Titled Tuesday Blitz October 25 Early 2022"]
[White "Horak, Martin"]
[Black "Salgado Lopez, Ivan"]
[WhiteFideId "367095"]
[BlackFideId "2257327"]
[WhiteElo "2091"]
[BlackElo "2594"]
[Result "0-1"]
[Round "01"]
[TimeControl "180+1"]
[Date "2022.10.25"]
[WhiteClock "0:00:02"]
[BlackClock "0:00:17"]

1. Nf3 {[%clk 0:02:55]}  d5 {[%clk 0:03:00]} 2. e3 {[%clk 0:02:55]}  Nf6 {[%clk 0:02:59]} 3. c4 {[%clk 0:02:55]}  e6 {[%clk 0:03:00]} 4. Nc3 {[%clk 0:02:55]}  Bd6 {[%clk 0:02:57]} 5. b3 {[%clk 0:02:49]}  O-O {[%clk 0:02:56]} 6. Bb2 {[%clk 0:02:49]}  Re8 {[%clk 0:02:55]} 7. d4 {[%clk 0:02:48]}  b6 {[%clk 0:02:53]} 8. Bd3 {[%clk 0:02:35]}  Bb7 {[%clk 0:02:52]} 9. O-O {[%clk 0:02:28]}  a6 {[%clk 0:02:52]} 10. Qc2 {[%clk 0:02:22]}  dxc4 {[%clk 0:02:49]} 11. Bxc4 {[%clk 0:02:14]}  b5 {[%clk 0:02:37]} 12. Bd3 {[%clk 0:02:10]}  Nbd7 {[%clk 0:02:37]} 13. Ne4 {[%clk 0:02:08]}  Be7 {[%clk 0:02:27]} 14. Rac1 {[%clk 0:02:05]}  Rc8 {[%clk 0:02:15]} 15. Rfd1 {[%clk 0:01:52]}  h6 {[%clk 0:02:12]} 16. Ne5 {[%clk 0:01:41]}  c6 {[%clk 0:01:56]} 17. Nc5 {[%clk 0:01:30]}  Nxc5 {[%clk 0:01:56]} 18. dxc5 {[%clk 0:01:30]}  Qc7 {[%clk 0:01:56]} 19. h3 {[%clk 0:01:12]}  a5 {[%clk 0:01:56]} 20. Rd2 {[%clk 0:01:05]}  Rcd8 {[%clk 0:01:54]} 21. Rcd1 {[%clk 0:01:05]}  Rd5 {[%clk 0:01:51]} 22. Nxf7 {[%clk 0:00:48]}  Kxf7 {[%clk 0:01:40]} 23. Bg6+ {[%clk 0:00:47]}  Kf8 {[%clk 0:01:37]} 24. Bxe8 {[%clk 0:00:43]}  Nxe8 {[%clk 0:01:36]} 25. Qh7 {[%clk 0:00:40]}  Bf6 {[%clk 0:01:30]} 26. Bxf6 {[%clk 0:00:31]}  Nxf6 {[%clk 0:01:30]} 27. Qh8+ {[%clk 0:00:31]}  Kf7 {[%clk 0:01:30]} 28. f3 {[%clk 0:00:22]}  Qc8 {[%clk 0:01:17]} 29. Qxc8 {[%clk 0:00:21]}  Bxc8 {[%clk 0:01:18]} 30. e4 {[%clk 0:00:20]}  Rxd2 {[%clk 0:01:18]} 31. Rxd2 {[%clk 0:00:20]}  Ke7 {[%clk 0:01:18]} 32. Kf2 {[%clk 0:00:20]}  Nd7 {[%clk 0:01:18]} 33. Rc2 {[%clk 0:00:20]}  b4 {[%clk 0:01:18]} 34. Ke3 {[%clk 0:00:20]}  Ba6 {[%clk 0:01:17]} 35. f4 {[%clk 0:00:19]}  e5 {[%clk 0:01:17]} 36. f5 {[%clk 0:00:19]}  Nf6 {[%clk 0:01:11]} 37. g4 {[%clk 0:00:18]}  Bf1 {[%clk 0:01:11]} 38. Rh2 {[%clk 0:00:17]}  Nd7 {[%clk 0:01:08]} 39. Rh1 {[%clk 0:00:16]}  Bb5 {[%clk 0:01:06]} 40. Rc1 {[%clk 0:00:16]}  Nf6 {[%clk 0:01:04]} 41. Rh1 {[%clk 0:00:14]}  Kf7 {[%clk 0:00:57]} 42. Rg1 {[%clk 0:00:15]}  Nd7 {[%clk 0:00:53]} 43. Rc1 {[%clk 0:00:14]}  Kf6 {[%clk 0:00:52]} 44. h4 {[%clk 0:00:14]}  g6 {[%clk 0:00:50]} 45. Rc2 {[%clk 0:00:12]}  Ba6 {[%clk 0:00:38]} 46. Rc1 {[%clk 0:00:12]}  Bc8 {[%clk 0:00:36]} 47. Rc2 {[%clk 0:00:10]}  gxf5 {[%clk 0:00:33]} 48. gxf5 {[%clk 0:00:10]}  Kf7 {[%clk 0:00:31]} 49. Rc1 {[%clk 0:00:09]}  Nf6 {[%clk 0:00:31]} 50. Rg1 {[%clk 0:00:08]}  Bd7 {[%clk 0:00:28]} 51. Rg6 {[%clk 0:00:06]}  h5 {[%clk 0:00:28]} 52. Rg5 {[%clk 0:00:05]}  Be8 {[%clk 0:00:27]} 53. Rg2 {[%clk 0:00:03]}  Ke7 {[%clk 0:00:27]} 54. Rd2 {[%clk 0:00:03]}  Nd7 {[%clk 0:00:26]} 55. Rc2 {[%clk 0:00:03]}  Bf7 {[%clk 0:00:26]} 56. Rc1 {[%clk 0:00:04]}  Nf6 {[%clk 0:00:25]} 57. Rc2 {[%clk 0:00:04]}  Ng4+ {[%clk 0:00:21]} 58. Kf3 {[%clk 0:00:04]}  Nf6 {[%clk 0:00:21]} 59. Ke3 {[%clk 0:00:05]}  Bg8 {[%clk 0:00:21]} 60. Rc1 {[%clk 0:00:05]}  Kd7 {[%clk 0:00:21]} 61. Rc2 {[%clk 0:00:05]}  Kc7 {[%clk 0:00:21]} 62. Rg2 {[%clk 0:00:04]}  a4 {[%clk 0:00:19]} 63. Rg6 {[%clk 0:00:04]}  a3 {[%clk 0:00:15]} 64. Rxf6 {[%clk 0:00:04]}  Bxb3 {[%clk 0:00:16]} 65. Rg6 {[%clk 0:00:02]}  Bxa2 {[%clk 0:00:17]} 66. Rg7+ {[%clk 0:00:02]}  Kd8 {[%clk 0:00:17]} 67. f6 {[%clk 0:00:03]}  Ke8 {[%clk 0:00:16]} 68. Rb7 {[%clk 0:00:02]}  b3 {[%clk 0:00:17]} 69. f7+ {[%clk 0:00:01]}  Kf8 {[%clk 0:00:17]} 70. Ra7 {[%clk 0:00:02]}  b2 {[%clk 0:00:17]} 0-1


[Site "https://www.chess.com"]

[Event "Titled Tuesday Blitz October 25 Early 2022"]
[White "Indjic, Aleksandar"]
[Black "Vagman, Roy"]
[WhiteFideId "911925"]
[BlackFideId "2828995"]
[WhiteElo "2592"]
[BlackElo "2174"]
[Result "1/2-1/2"]
[Round "01"]
[TimeControl "180+1"]
[Date "2022.10.25"]
[WhiteClock "0:01:01"]
[BlackClock "0:00:14"]

1. d4 {[%clk 0:03:00]}  Nf6 {[%clk 0:02:57]} 2. c4 {[%clk 0:03:00]}  g6 {[%clk 0:02:57]} 3. Nc3 {[%clk 0:02:59]}  Bg7 {[%clk 0:02:57]} 4. Nf3 {[%clk 0:02:59]}  d6 {[%clk 0:02:58]} 5. e4 {[%clk 0:02:58]}  O-O {[%clk 0:02:57]} 6. Be2 {[%clk 0:02:59]}  Nc6 {[%clk 0:02:57]} 7. Be3 {[%clk 0:02:58]}  e5 {[%clk 0:02:46]} 8. d5 {[%clk 0:02:57]}  Nb8 {[%clk 0:02:37]} 9. Nd2 {[%clk 0:02:57]}  a5 {[%clk 0:02:36]} 10. a3 {[%clk 0:02:57]}  Na6 {[%clk 0:02:35]} 11. b4 {[%clk 0:02:58]}  axb4 {[%clk 0:02:33]} 12. axb4 {[%clk 0:02:59]}  Bd7 {[%clk 0:02:30]} 13. Rb1 {[%clk 0:02:58]}  b6 {[%clk 0:02:29]} 14. O-O {[%clk 0:02:56]}  Ne8 {[%clk 0:02:21]} 15. Qb3 {[%clk 0:02:55]}  f5 {[%clk 0:02:17]} 16. f3 {[%clk 0:02:55]}  Nf6 {[%clk 0:02:10]} 17. Ra1 {[%clk 0:02:54]}  Nh5 {[%clk 0:02:02]} 18. c5 {[%clk 0:02:53]}  Nxb4 {[%clk 0:01:31]} 19. Qxb4 {[%clk 0:02:51]}  bxc5 {[%clk 0:01:31]} 20. Qb3 {[%clk 0:02:50]}  Rb8 {[%clk 0:01:30]} 21. Qc2 {[%clk 0:02:49]}  Nf4 {[%clk 0:01:28]} 22. Kh1 {[%clk 0:02:33]}  Kh8 {[%clk 0:01:17]} 23. Rfb1 {[%clk 0:02:31]}  Qf6 {[%clk 0:01:13]} 24. Bf1 {[%clk 0:02:31]}  Nh5 {[%clk 0:01:09]} 25. Rxb8 {[%clk 0:02:29]}  Rxb8 {[%clk 0:01:04]} 26. Ra7 {[%clk 0:02:29]}  Qd8 {[%clk 0:00:42]} 27. Kg1 {[%clk 0:02:26]}  Bf6 {[%clk 0:00:39]} 28. Nc4 {[%clk 0:02:15]}  Rb4 {[%clk 0:00:36]} 29. Qa2 {[%clk 0:02:13]}  Kg7 {[%clk 0:00:34]} 30. Ra8 {[%clk 0:02:12]}  Rb8 {[%clk 0:00:29]} 31. Rxb8 {[%clk 0:02:10]}  Qxb8 {[%clk 0:00:30]} 32. Qb2 {[%clk 0:02:08]}  Qa7 {[%clk 0:00:23]} 33. Nd2 {[%clk 0:02:06]}  h6 {[%clk 0:00:18]} 34. Bb5 {[%clk 0:02:04]}  Bxb5 {[%clk 0:00:17]} 35. Nxb5 {[%clk 0:02:03]}  Qa5 {[%clk 0:00:16]} 36. Nc3 {[%clk 0:02:02]}  Nf4 {[%clk 0:00:15]} 37. Nc4 {[%clk 0:01:51]}  Qxc3 {[%clk 0:00:14]} 38. Qxc3 {[%clk 0:01:45]}  Ne2+ {[%clk 0:00:14]} 39. Kf1 {[%clk 0:01:44]}  Nxc3 {[%clk 0:00:15]} 40. Nd2 {[%clk 0:01:44]}  fxe4 {[%clk 0:00:14]} 41. fxe4 {[%clk 0:01:44]}  Bg5 {[%clk 0:00:14]} 42. Bxg5 {[%clk 0:01:42]}  hxg5 {[%clk 0:00:15]} 43. Kf2 {[%clk 0:01:43]}  Kf6 {[%clk 0:00:16]} 44. Ke3 {[%clk 0:01:43]}  Nb5 {[%clk 0:00:16]} 45. Nc4 {[%clk 0:01:41]}  g4 {[%clk 0:00:16]} 46. g3 {[%clk 0:01:37]}  Kg5 {[%clk 0:00:17]} 47. Ke2 {[%clk 0:01:33]}  Nd4+ {[%clk 0:00:17]} 48. Kf2 {[%clk 0:01:33]}  Kh5 {[%clk 0:00:17]} 49. Na5 {[%clk 0:01:32]}  Nf3 {[%clk 0:00:17]} 50. h4 {[%clk 0:01:29]}  Nd2 {[%clk 0:00:17]} 51. Ke3 {[%clk 0:01:29]}  Nf1+ {[%clk 0:00:18]} 52. Kf2 {[%clk 0:01:28]}  Nd2 {[%clk 0:00:18]} 53. Ke3 {[%clk 0:01:28]}  Nb1 {[%clk 0:00:19]} 54. Nc6 {[%clk 0:01:23]}  g5 {[%clk 0:00:19]} 55. hxg5 {[%clk 0:01:23]}  Kxg5 {[%clk 0:00:20]} 56. Nd8 {[%clk 0:01:23]}  Kf6 {[%clk 0:00:14]} 57. Kd3 {[%clk 0:01:20]}  Na3 {[%clk 0:00:13]} 58. Nc6 {[%clk 0:01:16]}  Nb5 {[%clk 0:00:13]} 59. Na5 {[%clk 0:01:16]}  Nd4 {[%clk 0:00:12]} 60. Ke3 {[%clk 0:01:16]}  Ke7 {[%clk 0:00:11]} 61. Kd3 {[%clk 0:01:16]}  Nf3 {[%clk 0:00:11]} 62. Nc4 {[%clk 0:01:15]}  Kd7 {[%clk 0:00:09]} 63. Ne3 {[%clk 0:01:15]}  Nh2 {[%clk 0:00:07]} 64. Ke2 {[%clk 0:01:13]}  c6 {[%clk 0:00:07]} 65. Kf2 {[%clk 0:01:13]}  cxd5 {[%clk 0:00:07]} 66. exd5 {[%clk 0:01:14]}  Nf3 {[%clk 0:00:07]} 67. Nxg4 {[%clk 0:01:13]}  Ng5 {[%clk 0:00:07]} 68. Ne3 {[%clk 0:01:13]}  Ne4+ {[%clk 0:00:07]} 69. Kf3 {[%clk 0:01:12]}  Nf6 {[%clk 0:00:08]} 70. g4 {[%clk 0:01:12]}  Ke7 {[%clk 0:00:08]} 71. g5 {[%clk 0:01:12]}  Ne8 {[%clk 0:00:09]} 72. Kg4 {[%clk 0:01:12]}  Kf7 {[%clk 0:00:09]} 73. Nc4 {[%clk 0:01:11]}  Kg6 {[%clk 0:00:09]} 74. Nd2 {[%clk 0:01:08]}  Nc7 {[%clk 0:00:10]} 75. Ne4 {[%clk 0:01:08]}  Nxd5 {[%clk 0:00:10]} 76. Nxd6 {[%clk 0:01:08]}  Ne3+ {[%clk 0:00:09]} 77. Kf3 {[%clk 0:01:09]}  Nf5 {[%clk 0:00:09]} 78. Nc4 {[%clk 0:01:08]}  Kxg5 {[%clk 0:00:04]} 79. Nxe5 {[%clk 0:01:07]}  Kf6 {[%clk 0:00:04]} 80. Nc4 {[%clk 0:01:06]}  Ke6 {[%clk 0:00:05]} 81. Ke4 {[%clk 0:01:06]}  Nd6+ {[%clk 0:00:05]} 82. Kd3 {[%clk 0:01:04]}  Kd5 {[%clk 0:00:04]} 83. Nxd6 {[%clk 0:01:03]}  Kxd6 {[%clk 0:00:05]} 84. Kc4 {[%clk 0:01:03]}  Kc6 {[%clk 0:00:06]} 85. Kc3 {[%clk 0:01:02]}  Kd5 {[%clk 0:00:06]} 86. Kd3 {[%clk 0:01:02]}  c4+ {[%clk 0:00:07]} 87. Kc3 {[%clk 0:01:02]}  Kc5 {[%clk 0:00:08]} 88. Kc2 {[%clk 0:01:03]}  Kd4 {[%clk 0:00:09]} 89. Kd2 {[%clk 0:01:03]}  c3+ {[%clk 0:00:10]} 90. Kc2 {[%clk 0:01:03]}  Kc4 {[%clk 0:00:11]} 91. Kc1 {[%clk 0:01:02]}  Kb4 {[%clk 0:00:12]} 92. Kc2 {[%clk 0:01:02]}  Kc4 {[%clk 0:00:12]} 93. Kc1 {[%clk 0:01:02]}  Kd3 {[%clk 0:00:13]} 94. Kd1 {[%clk 0:01:01]}  Kd4 {[%clk 0:00:13]} 95. Kc2 {[%clk 0:01:01]}  Kc4 {[%clk 0:00:14]} 1/2-1/2


[Site "https://www.chess.com"]

[Event "Titled Tuesday Blitz October 25 Early 2022"]
[White "Kollars, Dmitrij"]
[Black "Pajeken, Jakob Leon"]
[WhiteFideId "12909572"]
[BlackFideId "12942839"]
[WhiteElo "2584"]
[BlackElo "2429"]
[Result "1-0"]
[Round "01"]
[TimeControl "180+1"]
[Date "2022.10.25"]
[WhiteClock "0:00:13"]
[BlackClock "0:00:06"]

1. d4 {[%clk 0:02:52]}  d5 {[%clk 0:03:00]} 2. c4 {[%clk 0:02:51]}  dxc4 {[%clk 0:03:00]} 3. Nf3 {[%clk 0:02:50]}  e6 {[%clk 0:02:58]} 4. e3 {[%clk 0:02:48]}  Nf6 {[%clk 0:02:58]} 5. Bxc4 {[%clk 0:02:48]}  c5 {[%clk 0:02:59]} 6. O-O {[%clk 0:02:48]}  Nc6 {[%clk 0:02:59]} 7. Qe2 {[%clk 0:02:46]}  a6 {[%clk 0:02:59]} 8. Rd1 {[%clk 0:02:44]}  b5 {[%clk 0:02:57]} 9. d5 {[%clk 0:02:38]}  exd5 {[%clk 0:02:47]} 10. Bxd5 {[%clk 0:02:35]}  Nxd5 {[%clk 0:02:43]} 11. e4 {[%clk 0:02:35]}  Bd6 {[%clk 0:02:11]} 12. Rxd5 {[%clk 0:02:27]}  Qe7 {[%clk 0:01:54]} 13. Rd1 {[%clk 0:02:11]}  Bg4 {[%clk 0:01:51]} 14. Be3 {[%clk 0:01:51]}  O-O {[%clk 0:01:17]} 15. Nbd2 {[%clk 0:01:51]}  Ne5 {[%clk 0:01:01]} 16. h3 {[%clk 0:01:48]}  Bh5 {[%clk 0:01:01]} 17. g4 {[%clk 0:01:36]}  Nxf3+ {[%clk 0:00:46]} 18. Qxf3 {[%clk 0:01:37]}  Bg6 {[%clk 0:00:47]} 19. Bf4 {[%clk 0:01:37]}  Bxf4 {[%clk 0:00:43]} 20. Qxf4 {[%clk 0:01:38]}  Rad8 {[%clk 0:00:41]} 21. f3 {[%clk 0:01:35]}  c4 {[%clk 0:00:38]} 22. Nf1 {[%clk 0:01:35]}  Qc5+ {[%clk 0:00:30]} 23. Qe3 {[%clk 0:01:35]}  Qb4 {[%clk 0:00:28]} 24. Qc3 {[%clk 0:01:27]}  Qc5+ {[%clk 0:00:25]} 25. Qe3 {[%clk 0:01:24]}  Qb4 {[%clk 0:00:25]} 26. Qf2 {[%clk 0:01:25]}  f6 {[%clk 0:00:23]} 27. Ne3 {[%clk 0:01:25]}  Bf7 {[%clk 0:00:22]} 28. Qc2 {[%clk 0:00:56]}  Qc5 {[%clk 0:00:21]} 29. Kf2 {[%clk 0:00:56]}  g6 {[%clk 0:00:19]} 30. Qc3 {[%clk 0:00:54]}  Qc6 {[%clk 0:00:18]} 31. b4 {[%clk 0:00:53]}  h6 {[%clk 0:00:16]} 32. Rd4 {[%clk 0:00:49]}  Rxd4 {[%clk 0:00:15]} 33. Qxd4 {[%clk 0:00:50]}  c3 {[%clk 0:00:13]} 34. Rc1 {[%clk 0:00:50]}  Rc8 {[%clk 0:00:13]} 35. a3 {[%clk 0:00:49]}  Bb3 {[%clk 0:00:12]} 36. Ke2 {[%clk 0:00:38]}  c2 {[%clk 0:00:12]} 37. Qd3 {[%clk 0:00:38]}  Ba4 {[%clk 0:00:10]} 38. Nd5 {[%clk 0:00:37]}  Kf7 {[%clk 0:00:10]} 39. Qd4 {[%clk 0:00:37]}  Qc4+ {[%clk 0:00:09]} 40. Ke3 {[%clk 0:00:29]}  Qxd4+ {[%clk 0:00:09]} 41. Kxd4 {[%clk 0:00:29]}  Ke6 {[%clk 0:00:08]} 42. Kd3 {[%clk 0:00:21]}  g5 {[%clk 0:00:06]} 43. f4 {[%clk 0:00:13]}  Rd8 {[%clk 0:00:04]} 44. Ke3 {[%clk 0:00:12]}  gxf4+ {[%clk 0:00:05]} 45. Nxf4+ {[%clk 0:00:12]}  Ke5 {[%clk 0:00:05]} 46. Nd3+ {[%clk 0:00:12]}  Ke6 {[%clk 0:00:05]} 47. Nc5+ {[%clk 0:00:13]}  Ke5 {[%clk 0:00:06]} 48. Nxa4 {[%clk 0:00:14]}  bxa4 {[%clk 0:00:06]} 49. Rxc2 {[%clk 0:00:14]}  Rd1 {[%clk 0:00:06]} 50. Rc5+ {[%clk 0:00:15]}  Ke6 {[%clk 0:00:06]} 51. Ra5 {[%clk 0:00:15]}  Re1+ {[%clk 0:00:06]} 52. Kf4 {[%clk 0:00:15]}  Rf1+ {[%clk 0:00:06]} 53. Kg3 {[%clk 0:00:16]}  Re1 {[%clk 0:00:07]} 54. Rxa6+ {[%clk 0:00:14]}  Ke5 {[%clk 0:00:07]} 55. Rxa4 {[%clk 0:00:14]}  Kxe4 {[%clk 0:00:07]} 56. b5+ {[%clk 0:00:14]}  Ke5 {[%clk 0:00:07]} 57. b6 {[%clk 0:00:14]}  Rb1 {[%clk 0:00:06]} 58. Rb4 {[%clk 0:00:14]}  Ra1 {[%clk 0:00:06]} 59. b7 {[%clk 0:00:13]} 1-0


[Site "https://www.chess.com"]

[Event "Titled Tuesday Blitz October 25 Early 2022"]
[White "Matlakov, Maxim"]
[Black "Lehtosaari, Mauri"]
[WhiteFideId "4168003"]
[BlackFideId "501999"]
[WhiteElo "2669"]
[BlackElo "2508"]
[Result "1-0"]
[Round "01"]
[TimeControl "180+1"]
[Date "2022.10.25"]
[WhiteClock "0:01:14"]
[BlackClock "0:00:08"]

1. Nf3 {[%clk 0:03:00]}  d5 {[%clk 0:02:58]} 2. g3 {[%clk 0:03:01]}  Nf6 {[%clk 0:02:58]} 3. Bg2 {[%clk 0:03:01]}  c6 {[%clk 0:02:58]} 4. O-O {[%clk 0:03:02]}  Bf5 {[%clk 0:02:58]} 5. d3 {[%clk 0:03:02]}  e6 {[%clk 0:02:57]} 6. Nh4 {[%clk 0:03:01]}  Bg6 {[%clk 0:02:54]} 7. Nxg6 {[%clk 0:03:01]}  hxg6 {[%clk 0:02:54]} 8. Nd2 {[%clk 0:03:02]}  Nbd7 {[%clk 0:02:51]} 9. e4 {[%clk 0:03:01]}  Qb6 {[%clk 0:02:47]} 10. Qe2 {[%clk 0:03:01]}  Bc5 {[%clk 0:02:33]} 11. c3 {[%clk 0:02:58]}  Qa6 {[%clk 0:02:20]} 12. e5 {[%clk 0:02:51]}  Ng8 {[%clk 0:02:19]} 13. Nf3 {[%clk 0:02:50]}  Ne7 {[%clk 0:02:15]} 14. a4 {[%clk 0:02:47]}  Nf5 {[%clk 0:02:00]} 15. Qc2 {[%clk 0:02:43]}  b6 {[%clk 0:01:08]} 16. d4 {[%clk 0:02:41]}  Be7 {[%clk 0:01:07]} 17. h4 {[%clk 0:02:40]}  Rc8 {[%clk 0:01:05]} 18. b4 {[%clk 0:02:35]}  c5 {[%clk 0:01:03]} 19. b5 {[%clk 0:02:35]}  Qb7 {[%clk 0:01:03]} 20. Qe2 {[%clk 0:02:35]}  cxd4 {[%clk 0:01:03]} 21. cxd4 {[%clk 0:02:35]}  Rc4 {[%clk 0:01:02]} 22. Rd1 {[%clk 0:02:34]}  Qc8 {[%clk 0:01:02]} 23. Bf4 {[%clk 0:02:28]}  Rc2 {[%clk 0:01:00]} 24. Rac1 {[%clk 0:02:25]}  Rxc1 {[%clk 0:00:58]} 25. Rxc1 {[%clk 0:02:26]}  Qb7 {[%clk 0:00:59]} 26. Qc2 {[%clk 0:02:22]}  Kd8 {[%clk 0:00:49]} 27. Bh3 {[%clk 0:02:20]}  Ba3 {[%clk 0:00:31]} 28. Ra1 {[%clk 0:02:17]}  Be7 {[%clk 0:00:31]} 29. Bxf5 {[%clk 0:01:59]}  gxf5 {[%clk 0:00:31]} 30. Bg5 {[%clk 0:01:57]}  Bxg5 {[%clk 0:00:26]} 31. Nxg5 {[%clk 0:01:58]}  Ke7 {[%clk 0:00:27]} 32. Rc1 {[%clk 0:01:57]}  f6 {[%clk 0:00:22]} 33. exf6+ {[%clk 0:01:38]}  gxf6 {[%clk 0:00:23]} 34. Nh3 {[%clk 0:01:37]}  Rg8 {[%clk 0:00:20]} 35. Nf4 {[%clk 0:01:26]}  a6 {[%clk 0:00:18]} 36. Qc3 {[%clk 0:01:25]}  axb5 {[%clk 0:00:15]} 37. axb5 {[%clk 0:01:25]}  Kf7 {[%clk 0:00:13]} 38. h5 {[%clk 0:01:22]}  Rh8 {[%clk 0:00:12]} 39. Re1 {[%clk 0:01:19]}  Re8 {[%clk 0:00:12]} 40. Qf3 {[%clk 0:01:15]}  Qc7 {[%clk 0:00:11]} 41. h6 {[%clk 0:01:16]}  Qc2 {[%clk 0:00:10]} 42. Qh5+ {[%clk 0:01:15]}  Kf8 {[%clk 0:00:08]} 43. h7 {[%clk 0:01:14]}  Kg7 {[%clk 0:00:08]} 1-0


[Site "https://www.chess.com"]